fUSD/lending_fUSD_20250103
["ID","MTS","AMOUNT","RATE_DAILY","PERIOD"]
[347510626,1735895451173,-500.0,9.273e-05,2]
[347510627,1735895451182,-500.0,9.273e-05,2]
[347510628,1735895451191,-500.0,9.273e-05,2]
[347510629,1735895451203,-652.28,9.273e-05,2]
[347510630,1735895451213,-500.0,9.273e-05,2]
[347510631,1735895451223,-682.96,9.273e-05,2]
[347510632,1735895451233,-500.0,9.273e-05,2]
[347510633,1735895451244,-500.0,9.273e-05,2]
[347510634,1735895451254,-691.27,9.273e-05,2]
[347510635,1735895451263,-500.0,9.273e-05,2]
[347510636,1735895451274,-500.0,9.273e-05,2]
[347510637,1735895451283,-1728.05,9.273e-05,2]
[347510638,1735895451292,-500.0,9.273e-05,2]
[347510639,1735895451302,-500.0,9.273e-05,2]
[347510640,1735895451311,-1023.26,9.273e-05,2]
[347510641,1735895451321,-1367.97,9.273e-05,2]
[347510642,1735895451330,-3467.39,9.273e-05,2]
[347510643,1735895451340,-1829.72,9.273e-05,2]
[347510644,1735895451349,-1232.62,9.273e-05,2]
[347510645,1735895451359,-966.33,9.273e-05,2]
[347510646,1735895451368,-2235.53,9.273e-05,2]
[347510647,1735895451379,-967.15,9.273e-05,2]
[347510648,1735895451388,-732.7,9.273e-05,2]
[347510649,1735895451398,-666.51,9.273e-05,2]
[347510650,1735895451409,-1821.66,9.273e-05,2]
[347510651,1735895451419,-500.0,9.273e-05,2]
[347510652,1735895451428,-500.0,9.273e-05,2]
[347510653,1735895451439,-1346.23,9.273e-05,2]
[347510654,1735895451533,-500.0,9.273e-05,2]
[347510655,1735895451542,-500.0,9.273e-05,2]
[347510656,1735895451551,-500.0,9.273e-05,2]
[347510657,1735895451561,-500.0,9.273e-05,2]
[347510658,1735895451570,-500.0,9.273e-05,2]
[347510659,1735895451579,-3849.55,9.273e-05,2]
[347510660,1735895451589,-500.0,9.273e-05,2]
[347510661,1735895451598,-500.0,9.273e-05,2]
[347510662,1735895451607,-2265.36,9.273e-05,2]
[347510663,1735895451617,-500.0,9.273e-05,2]
[347510664,1735895451626,-1200.37,9.273e-05,2]
[347510665,1735895451636,-500.0,9.273e-05,2]
[347510666,1735895451645,-2821.09,9.273e-05,2]
[347510667,1735895451654,-500.0,9.273e-05,2]
[347510668,1735895451663,-650.73,9.273e-05,2]
[347510669,1735895451672,-1089.52,9.273e-05,2]
[347510670,1735895451681,-501.56593291,9.273e-05,2]
[347510671,1735895451690,-278.95750636,9.273e-05,2]
[347510672,1735895451699,-1106.03,9.273e-05,2]
[347510673,1735895451708,-1075.75,9.273e-05,2]
[347510674,1735895451718,-500.0,9.273e-05,2]
[347510675,1735895451727,-1717.61,9.273e-05,2]
[347510676,1735895451736,-500.0,9.273e-05,2]
[347510677,1735895451745,-6393.48,9.273e-05,2]
[347510678,1735895451754,-1343.99,9.273e-05,2]
[347510679,1735895451763,-500.0,9.273e-05,2]
[347510680,1735895451773,-599.4,9.273e-05,2]
[347510681,1735895451786,-1327.15,9.273e-05,2]
[347510682,1735895451795,-615.13,9.273e-05,2]
[347510683,1735895451805,-4289.83,9.273e-05,2]
[347510684,1735895451814,-2766.93,9.273e-05,2]
[347510685,1735895451824,-500.0,9.273e-05,2]
[347510686,1735895451833,-7467.91,9.273e-05,2]
[347510687,1735895451842,-500.0,9.273e-05,2]
[347510688,1735895451851,-2032.97,9.273e-05,2]
[347510689,1735895451860,-1037.33,9.273e-05,2]
[347510690,1735895451869,-2575.71,9.273e-05,2]
[347510691,1735895451878,-3722.95,9.273e-05,2]
[347510692,1735895451888,-555.63,9.273e-05,2]
[347510693,1735895451897,-915.54,9.273e-05,2]
[347510694,1735895451906,-1479.27,9.273e-05,2]
[347510695,1735895451916,-7518.84,9.273e-05,2]
[347510696,1735895451925,-926.09,9.273e-05,2]
[347510697,1735895451934,-1202.25,9.273e-05,2]
[347510698,1735895451943,-24507.97,9.273e-05,2]
[347510699,1735895451953,-500.0,9.273e-05,2]
[347510700,1735895451962,-1115.33,9.273e-05,2]
[347510701,1735895451971,-500.0,9.273e-05,2]
[347510702,1735895451980,-1407.27,9.273e-05,2]
[347510703,1735895451990,-3137.56,9.273e-05,2]
[347510704,1735895451999,-500.0,9.273e-05,2]
[347510705,1735895452008,-500.0,9.273e-05,2]
[347510706,1735895452017,-1717.87,9.273e-05,2]
[347510707,1735895452026,-955.82,9.273e-05,2]
[347510708,1735895452035,-500.0,9.273e-05,2]
[347510709,1735895452045,-2990.55,9.273e-05,2]
[347510710,1735895452054,-500.0,9.273e-05,2]
[347510711,1735895452064,-594.36,9.273e-05,2]
[347510712,1735895452073,-1061.91,9.273e-05,2]
[347510713,1735895452083,-1999.88,9.273e-05,2]
[347510714,1735895452093,-500.0,9.273e-05,2]
[347510715,1735895452103,-4910.85,9.273e-05,2]
[347510716,1735895452112,-500.0,9.273e-05,2]
[347510717,1735895452122,-1153.66,9.273e-05,2]
[347510718,1735895452132,-902.7,9.273e-05,2]
[347510719,1735895452142,-2278.56,9.273e-05,2]
[347510720,1735895452151,-649.03,9.273e-05,2]
[347510721,1735895452164,-500.0,9.273e-05,2]
[347510722,1735895452174,-2786.86,9.273e-05,2]
[347510723,1735895452184,-652.24,9.273e-05,2]
[347510724,1735895452193,-500.0,9.273e-05,2]
[347510725,1735895452203,-500.0,9.273e-05,2]
[347510726,1735895452212,-1282.35,9.273e-05,2]
[347510727,1735895452222,-500.0,9.273e-05,2]
[347510728,1735895452232,-1488.79,9.273e-05,2]
[347510729,1735895452243,-16219.48,9.273e-05,2]
[347510730,1735895452253,-500.0,9.273e-05,2]
[347510731,1735895452262,-897.64,9.273e-05,2]
[347510732,1735895452272,-1388.47,9.273e-05,2]
[347510733,1735895452281,-7839.83,9.273e-05,2]
[347510734,1735895452291,-585.14,9.273e-05,2]
[347510735,1735895452300,-4052.18,9.273e-05,2]
[347510736,1735895452309,-500.0,9.273e-05,2]
[347510737,1735895452318,-2169.39,9.273e-05,2]
[347510738,1735895452328,-12309.11,9.273e-05,2]
[347510739,1735895452338,-500.0,9.273e-05,2]
[347510740,1735895452348,-2134.97,9.273e-05,2]
[347510741,1735895452357,-500.0,9.273e-05,2]
[347510742,1735895452367,-1153.95,9.273e-05,2]
[347510743,1735895452377,-5725.35,9.273e-05,2]
[347510744,1735895452386,-500.0,9.273e-05,2]
[347510745,1735895452396,-2979.59,9.273e-05,2]
[347510746,1735895452406,-2914.72,9.273e-05,2]
[347510747,1735895452415,-1364.87,9.273e-05,2]
[347510748,1735895452425,-7566.06,9.273e-05,2]
[347510749,1735895452435,-2399.32,9.273e-05,2]
[347510750,1735895452444,-603.21,9.273e-05,2]
[347510751,1735895452454,-1193.21,9.273e-05,2]
[347510752,1735895452464,-2750.41,9.273e-05,2]
[347510753,1735895452473,-500.0,9.273e-05,2]
[347510754,1735895452482,-7489.36,9.273e-05,2]
[347510755,1735895452491,-500.0,9.273e-05,2]
[347510756,1735895452500,-500.0,9.273e-05,2]
[347510757,1735895452510,-10887.3,9.273e-05,2]
[347510758,1735895452519,-500.0,9.273e-05,2]
[347510759,1735895452529,-3131.5,9.273e-05,2]
[347510760,1735895452539,-500.0,9.273e-05,2]
[347510761,1735895452548,-500.00000001,9.273e-05,2]
[347510762,1735895452557,-1122.57,9.273e-05,2]
[347510763,1735895452566,-500.0,9.273e-05,2]
[347510764,1735895452576,-5529.03,9.273e-05,2]
[347510765,1735895452585,-500.0,9.273e-05,2]
[347510766,1735895452595,-540.93,9.273e-05,2]
[347510767,1735895452604,-1133.66,9.273e-05,2]
[347510768,1735895452613,-500.0,9.273e-05,2]
[347510769,1735895452622,-1508.17,9.273e-05,2]
[347510770,1735895452632,-500.0,9.273e-05,2]
[347510771,1735895452642,-500.0,9.273e-05,2]
[347510772,1735895452651,-4067.65,9.273e-05,2]
[347510773,1735895452660,-1046.92,9.273e-05,2]
[347510774,1735895452670,-500.0,9.273e-05,2]
[347510775,1735895452679,-4338.03,9.273e-05,2]
[347510776,1735895452688,-861.66,9.273e-05,2]
[347510777,1735895452698,-500.0,9.273e-05,2]
[347510778,1735895452713,-1831.5,9.273e-05,2]
[347510779,1735895452722,-3799.9,9.273e-05,2]
[347510780,1735895452731,-500.0,9.273e-05,2]
[347510781,1735895452740,-500.0,9.273e-05,2]
[347510782,1735895452750,-500.0,9.273e-05,2]
[347510783,1735895452760,-150.0,9.274e-05,2]
[347510784,1735895452769,-150.0,9.286e-05,2]
[347510785,1735895452779,-150.0,9.31e-05,2]
[347510786,1735895452789,-150.0,9.327e-05,2]
[347510787,1735895452799,-118283.24605231,9.34e-05,2]
[347510788,1735895452811,-150.0,9.361e-05,2]
[347510789,1735895452821,-150.0,9.366e-05,2]
[347510790,1735895452830,-150.0,9.368e-05,2]
[347510791,1735895452840,-557.69,9.375e-05,2]
[347510792,1735895452849,-732.6,9.375e-05,2]
[347510793,1735895452859,-500.0,9.375e-05,2]
[347510794,1735895452869,-1844.43,9.375e-05,2]
[347510795,1735895452878,-500.0,9.375e-05,2]
[347510796,1735895452887,-500.0,9.375e-05,2]
[347510797,1735895452897,-500.0,9.375e-05,2]
[347510798,1735895452907,-545.35,9.375e-05,2]
[347510799,1735895452917,-500.0,9.375e-05,2]
[347510800,1735895452926,-500.0,9.375e-05,2]
[347510801,1735895452935,-500.0,9.375e-05,2]
[347510802,1735895452945,-618.27,9.375e-05,2]
[347510803,1735895452954,-500.0,9.375e-05,2]
[347510804,1735895452964,-1186.73,9.375e-05,2]
[347510805,1735895452974,-500.0,9.375e-05,2]
[347510806,1735895452983,-884.39,9.375e-05,2]
[347510807,1735895452992,-1201.97,9.375e-05,2]
[347510808,1735895453002,-500.0,9.375e-05,2]
[347510809,1735895453012,-500.0,9.375e-05,2]
[347510810,1735895453022,-500.0,9.375e-05,2]
[347510811,1735895453031,-771.29,9.375e-05,2]
[347510812,1735895453040,-500.0,9.375e-05,2]
[347510813,1735895453051,-500.0,9.375e-05,2]
[347510814,1735895453060,-438.8041453,9.375e-05,2]
[347510815,1735895453069,-500.0,9.375e-05,2]
[347510816,1735895453078,-500.0,9.375e-05,2]
[347510817,1735895453088,-500.0,9.375e-05,2]
[347510818,1735895453097,-500.0,9.375e-05,2]
[347510819,1735895453107,-2698.4,9.375e-05,2]
[347510820,1735895453118,-500.0,9.375e-05,2]
[347510821,1735895453129,-500.0,9.375e-05,2]
[347510822,1735895453138,-500.0,9.375e-05,2]
[347510823,1735895453147,-500.0,9.375e-05,2]
[347510824,1735895453157,-500.0,9.375e-05,2]
[347510825,1735895453172,-500.0,9.375e-05,2]
[347510826,1735895453181,-500.0,9.375e-05,2]
[347510827,1735895453191,-500.0,9.375e-05,2]
[347510828,1735895453201,-500.0,9.375e-05,2]
[347510829,1735895453210,-1009.73,9.375e-05,2]
[347510830,1735895453220,-500.0,9.375e-05,2]
[347510831,1735895453231,-500.0,9.375e-05,2]
[347510832,1735895453242,-522.84,9.375e-05,2]
[347510833,1735895453252,-500.0,9.375e-05,2]
[347510834,1735895453262,-500.0,9.375e-05,2]
[347510835,1735895453271,-500.0,9.375e-05,2]
[347510836,1735895453281,-500.0,9.375e-05,2]
[347510837,1735895453292,-500.0,9.375e-05,2]
[347510838,1735895453301,-337.30863337,9.375e-05,2]
[347510839,1735895453312,-500.0,9.375e-05,2]
[347510840,1735895453322,-560.8,9.375e-05,2]
[347510841,1735895453331,-500.0,9.375e-05,2]
[347510842,1735895453341,-594.02,9.375e-05,2]
[347510843,1735895453350,-500.0,9.375e-05,2]
[347510844,1735895453360,-502.38,9.375e-05,2]
[347510845,1735895453371,-555.79,9.375e-05,2]
[347510846,1735895453380,-500.0,9.375e-05,2]
[347510847,1735895453390,-428.65465859,9.375e-05,2]
[347510848,1735895453400,-500.0,9.375e-05,2]
[347510849,1735895453410,-500.0,9.375e-05,2]
[347510850,1735895453419,-500.0,9.375e-05,2]
[347510851,1735895453429,-2046.27,9.375e-05,2]
[347510852,1735895453438,-500.0,9.375e-05,2]
[347510853,1735895453448,-3189.41,9.375e-05,2]
[347510854,1735895453457,-1051.63,9.375e-05,2]
[347510855,1735895453466,-1089.08,9.375e-05,2]
[347510856,1735895453476,-500.0,9.375e-05,2]
[347510857,1735895453486,-500.0,9.375e-05,2]
[347510858,1735895453495,-817.25,9.375e-05,2]
[347510859,1735895453505,-500.0,9.375e-05,2]
[347510860,1735895453515,-500.0,9.375e-05,2]
[347510861,1735895453524,-500.0,9.375e-05,2]
[347510862,1735895453534,-500.0,9.375e-05,2]
[347510863,1735895453543,-1443.25,9.375e-05,2]
[347510864,1735895453553,-500.0,9.375e-05,2]
[347510865,1735895453563,-500.0,9.375e-05,2]
[347510866,1735895453572,-500.0,9.375e-05,2]
[347510867,1735895453582,-500.0,9.375e-05,2]
[347510868,1735895453591,-877.55,9.375e-05,2]
[347510869,1735895453600,-709.46,9.375e-05,2]
[347510870,1735895453611,-1075.47,9.375e-05,2]
[347510871,1735895453620,-520.25,9.375e-05,2]
[347510872,1735895453630,-500.0,9.375e-05,2]
[347510873,1735895453640,-500.0,9.375e-05,2]
[347510874,1735895453649,-1894.09,9.375e-05,2]
[347510875,1735895453658,-500.0,9.375e-05,2]
[347510876,1735895453668,-500.0,9.375e-05,2]
[347510877,1735895453677,-500.0,9.375e-05,2]
[347510878,1735895453687,-500.0,9.375e-05,2]
[347510879,1735895453697,-500.0,9.375e-05,2]
[347510880,1735895453707,-1835.04,9.375e-05,2]
[347510881,1735895453716,-500.0,9.375e-05,2]
[347510882,1735895453726,-1700.07,9.375e-05,2]
[347510883,1735895453736,-500.0,9.375e-05,2]
[347510884,1735895453745,-500.0,9.375e-05,2]
[347510885,1735895453755,-500.0,9.375e-05,2]
[347510886,1735895453764,-577.88,9.375e-05,2]
[347510887,1735895453774,-1497.11,9.375e-05,2]
[347510888,1735895453783,-500.0,9.375e-05,2]
[347510889,1735895453793,-500.0,9.375e-05,2]
[347510890,1735895453802,-500.0,9.375e-05,2]
[347510891,1735895453812,-1163.12,9.375e-05,2]
[347510892,1735895453821,-710.29,9.375e-05,2]
[347510893,1735895453830,-517.22553754,9.375e-05,2]
[347510894,1735895453840,-860.96,9.375e-05,2]
[347510895,1735895453849,-719.73,9.375e-05,2]
[347510896,1735895453858,-500.0,9.375e-05,2]
[347510897,1735895453867,-781.86,9.375e-05,2]
[347510898,1735895453876,-500.0,9.375e-05,2]
[347510899,1735895453886,-500.0,9.375e-05,2]
[347510900,1735895453895,-500.0,9.375e-05,2]
[347510901,1735895453904,-500.0,9.375e-05,2]
[347510902,1735895453913,-992.05,9.375e-05,2]
[347510903,1735895453923,-500.0,9.375e-05,2]
[347510904,1735895453931,-500.0,9.375e-05,2]
[347510905,1735895453940,-500.0,9.375e-05,2]
[347510906,1735895453950,-500.0,9.375e-05,2]
[347510907,1735895453964,-918.52,9.375e-05,2]
[347510908,1735895453974,-500.0,9.375e-05,2]
[347510909,1735895453983,-1076.58,9.375e-05,2]
[347510910,1735895453994,-500.0,9.375e-05,2]
[347510911,1735895454003,-500.0,9.375e-05,2]
[347510912,1735895454012,-1522.92,9.375e-05,2]
[347510913,1735895454025,-500.0,9.375e-05,2]
[347510914,1735895454035,-500.0,9.375e-05,2]
[347510915,1735895454045,-2003.52,9.375e-05,2]
[347510916,1735895454057,-1040.42,9.375e-05,2]
[347510917,1735895454066,-500.0,9.375e-05,2]
[347510918,1735895454076,-500.0,9.375e-05,2]
[347510919,1735895454086,-578.5785173,9.375e-05,2]
[347510920,1735895454096,-1989.6,9.375e-05,2]
[347510921,1735895454107,-500.0,9.375e-05,2]
[347510922,1735895454118,-1061.41,9.375e-05,2]
[347510923,1735895454130,-500.0,9.375e-05,2]
[347510924,1735895454140,-1916.48,9.375e-05,2]
[347510925,1735895454150,-500.0,9.375e-05,2]
[347510926,1735895454160,-500.0,9.375e-05,2]
[347510927,1735895454171,-500.0,9.375e-05,2]
[347510928,1735895454181,-500.0,9.375e-05,2]
[347510929,1735895454190,-500.0,9.375e-05,2]
[347510930,1735895454200,-1923.07,9.375e-05,2]
[347510931,1735895454216,-500.0,9.375e-05,2]
[347510932,1735895454227,-678.1,9.375e-05,2]
[347510933,1735895454237,-500.0,9.375e-05,2]
[347510934,1735895454248,-500.0,9.375e-05,2]
[347510935,1735895454258,-500.0,9.375e-05,2]
[347510936,1735895454268,-1023.85,9.375e-05,2]
[347510937,1735895454278,-500.0,9.375e-05,2]
[347510938,1735895454290,-6348.5,9.375e-05,2]
[347510939,1735895454300,-807.07,9.375e-05,2]
[347510940,1735895454309,-500.0,9.375e-05,2]
[347510941,1735895454319,-500.0,9.375e-05,2]
[347510942,1735895454330,-500.0,9.375e-05,2]
[347510943,1735895454339,-500.0,9.375e-05,2]
[347510944,1735895454349,-1506.58,9.375e-05,2]
[347510945,1735895454358,-500.0,9.375e-05,2]
[347510946,1735895454368,-3433.29,9.375e-05,2]
[347510947,1735895454378,-1143.04,9.375e-05,2]
[347510948,1735895454388,-1901.37,9.375e-05,2]
[347510949,1735895454397,-500.0,9.375e-05,2]
[347510950,1735895454407,-1007.48,9.375e-05,2]
[347510951,1735895454416,-500.0,9.375e-05,2]
[347510952,1735895454426,-500.0,9.375e-05,2]
[347510953,1735895454436,-500.0,9.375e-05,2]
[347510954,1735895454446,-500.0,9.375e-05,2]
[347510955,1735895454459,-18440.55,9.375e-05,2]
[347510956,1735895454469,-500.0,9.375e-05,2]
[347510957,1735895454478,-500.0,9.375e-05,2]
[347510958,1735895454488,-3500.81,9.375e-05,2]
[347510959,1735895454497,-500.0,9.375e-05,2]
[347510960,1735895454506,-500.0,9.375e-05,2]
[347510961,1735895454515,-500.0,9.375e-05,2]
[347510962,1735895454525,-611.47,9.375e-05,2]
[347510963,1735895454534,-781.06,9.375e-05,2]
[347510964,1735895454543,-195.03450594,9.375e-05,2]
[347510965,1735895454553,-9393.15,9.375e-05,2]
[347510966,1735895454563,-500.0,9.375e-05,2]
[347510967,1735895454573,-445.16961526,9.375e-05,2]
[347510968,1735895454582,-2733.51,9.375e-05,2]
[347510969,1735895454593,-500.0,9.375e-05,2]
[347510970,1735895454602,-500.0,9.375e-05,2]
[347510971,1735895454612,-633.93,9.375e-05,2]
[347510972,1735895454622,-500.0,9.375e-05,2]
[347510973,1735895454631,-500.0,9.375e-05,2]
[347510974,1735895454641,-500.0,9.375e-05,2]
[347510975,1735895454650,-529.76046883,9.375e-05,2]
[347510976,1735895454659,-3355.59,9.375e-05,2]
[347510977,1735895454668,-720.22,9.375e-05,2]
[347510978,1735895454678,-500.0,9.375e-05,2]
[347510979,1735895454687,-500.0,9.375e-05,2]
[347510980,1735895454697,-1021.04,9.375e-05,2]
[347510981,1735895454707,-500.0,9.375e-05,2]
[347510982,1735895454716,-500.0,9.375e-05,2]
[347510983,1735895454725,-500.0,9.375e-05,2]
[347510984,1735895454735,-500.0,9.375e-05,2]
[347510985,1735895454745,-500.0,9.375e-05,2]
[347510986,1735895454754,-500.0,9.375e-05,2]
[347510987,1735895454764,-1790.12,9.375e-05,2]
[347510988,1735895454773,-2017.24,9.375e-05,2]
[347510989,1735895454783,-1069.32,9.375e-05,2]
[347510990,1735895454792,-500.0,9.375e-05,2]
[347510991,1735895454802,-500.0,9.375e-05,2]
[347510992,1735895454812,-500.0,9.375e-05,2]
[347510993,1735895454822,-500.0,9.375e-05,2]
[347510994,1735895454832,-505.99,9.375e-05,2]
[347510995,1735895454842,-529.10726853,9.375e-05,2]
[347510996,1735895454851,-500.0,9.375e-05,2]
[347510997,1735895454860,-500.0,9.375e-05,2]
[347510998,1735895454870,-500.0,9.375e-05,2]
[347510999,1735895454880,-500.0,9.375e-05,2]
[347511000,1735895454890,-500.0,9.375e-05,2]
[347511001,1735895454900,-3181.53,9.375e-05,2]
[347511002,1735895454910,-500.0,9.375e-05,2]
[347511003,1735895454921,-500.0,9.375e-05,2]
[347511004,1735895454933,-500.0,9.375e-05,2]
[347511005,1735895454942,-500.0,9.375e-05,2]
[347511006,1735895454952,-700.42,9.375e-05,2]
[347511007,1735895454962,-6034.34,9.376e-05,2]
[347511008,1735895454971,-636.02,9.376e-05,2]
[347511009,1735895454981,-2604.6,9.376e-05,2]
[347511010,1735895454991,-3795.7,9.376e-05,2]
[347511011,1735895455001,-2700.78,9.376e-05,2]
[347511012,1735895455011,-829.92,9.376e-05,2]
[347511013,1735895455020,-5772.56,9.376e-05,2]
[347511014,1735895455031,-1100.58,9.376e-05,2]
[347511015,1735895455042,-9947.65,9.376e-05,2]
[347511016,1735895455052,-500.0,9.376e-05,2]
[347511017,1735895455063,-183.44228725,9.376e-05,2]
[347511018,1735895455072,-4585.05,9.376e-05,2]
[347511019,1735895455082,-2755.62,9.376e-05,2]
[347511020,1735895455091,-4143.58,9.376e-05,2]
[347511021,1735895455102,-3526.9,9.376e-05,2]
[347511022,1735895455113,-2367.03,9.376e-05,2]
[347511023,1735895455123,-3441.42,9.376e-05,2]
[347511024,1735895455134,-1337.205465,9.376e-05,2]
[347511025,1735895455144,-500.0,9.376e-05,2]
[347511026,1735895455153,-9287.34,9.376e-05,2]
[347511027,1735895455167,-500.0,9.376e-05,2]
[347511028,1735895455176,-3081.08,9.376e-05,2]
[347511029,1735895455186,-500.0,9.376e-05,2]
[347511030,1735895455195,-2169.29,9.376e-05,2]
[347511031,1735895455207,-2273.83,9.376e-05,2]
[347511032,1735895455217,-1449.0,9.376e-05,2]
[347511033,1735895455227,-2680.84,9.376e-05,2]
[347511034,1735895455237,-500.0,9.376e-05,2]
[347511035,1735895455247,-584.620261,9.376e-05,2]
[347511036,1735895455256,-500.0,9.376e-05,2]
[347511037,1735895455266,-500.0,9.376e-05,2]
[347511038,1735895455277,-2276.71,9.376e-05,2]
[347511039,1735895455288,-1949.99,9.376e-05,2]
[347511040,1735895455298,-2828.45,9.376e-05,2]
[347511041,1735895455307,-1287.83,9.376e-05,2]
[347511042,1735895455318,-2938.81,9.376e-05,2]
[347511043,1735895455328,-500.0,9.376e-05,2]
[347511044,1735895455338,-2254.41,9.376e-05,2]
[347511045,1735895455347,-1805.42,9.376e-05,2]
[347511046,1735895455359,-500.0,9.376e-05,2]
[347511047,1735895455369,-563.94,9.376e-05,2]
[347511048,1735895455379,-500.0,9.376e-05,2]
[347511049,1735895455389,-2621.84,9.376e-05,2]
[347511050,1735895455398,-500.0,9.376e-05,2]
[347511051,1735895455410,-1956.05,9.376e-05,2]
[347511052,1735895455420,-1956.86,9.376e-05,2]
[347511053,1735895455431,-2746.45,9.376e-05,2]
[347511054,1735895455443,-500.0,9.376e-05,2]
[347511055,1735895455453,-1819.56,9.376e-05,2]
[347511056,1735895455464,-2012.09,9.376e-05,2]
[347511057,1735895455473,-11432.16,9.376e-05,2]
[347511058,1735895455483,-500.0,9.376e-05,2]
[347511059,1735895455493,-1961.24,9.376e-05,2]
[347511060,1735895455504,-5272.42,9.376e-05,2]
[347511061,1735895455513,-2473.75,9.376e-05,2]
[347511062,1735895455523,-568.85,9.376e-05,2]
[347511063,1735895455533,-1539.15,9.376e-05,2]
[347511064,1735895455543,-1847.94,9.376e-05,2]
[347511065,1735895455552,-2041.86,9.376e-05,2]
[347511066,1735895455562,-1641.64,9.376e-05,2]
[347511067,1735895455572,-2235.06,9.376e-05,2]
[347511068,1735895455582,-1130.02,9.376e-05,2]
[347511069,1735895455592,-3098.25,9.376e-05,2]
[347511070,1735895455601,-2016.93,9.376e-05,2]
[347511071,1735895455610,-2379.33,9.376e-05,2]
[347511072,1735895455620,-2629.39,9.376e-05,2]
[347511073,1735895455629,-1133.19,9.376e-05,2]
[347511074,1735895455638,-3732.66,9.376e-05,2]
[347511075,1735895455647,-1471.94,9.376e-05,2]
[347511076,1735895455657,-2162.02,9.376e-05,2]
[347511077,1735895455666,-922.61,9.376e-05,2]
[347511078,1735895455676,-1909.06,9.376e-05,2]
[347511079,1735895455685,-3234.32,9.376e-05,2]
[347511080,1735895455695,-4085.3,9.376e-05,2]
[347511081,1735895455705,-2313.35,9.376e-05,2]
[347511082,1735895455714,-2022.56,9.376e-05,2]
[347511083,1735895455723,-1322.94,9.376e-05,2]
[347511084,1735895455733,-2216.42,9.376e-05,2]
[347511085,1735895455743,-1537.8,9.376e-05,2]
[347511086,1735895455752,-1923.54,9.376e-05,2]
[347511087,1735895455761,-2051.65,9.376e-05,2]
[347511088,1735895455771,-500.0,9.376e-05,2]
[347511089,1735895455781,-2924.05,9.376e-05,2]
[347511090,1735895455790,-775.39,9.376e-05,2]
[347511091,1735895455800,-500.0,9.376e-05,2]
[347511092,1735895455809,-500.0,9.376e-05,2]
[347511093,1735895455819,-1939.64,9.376e-05,2]
[347511094,1735895455828,-500.0,9.376e-05,2]
[347511095,1735895455837,-1665.98,9.376e-05,2]
[347511096,1735895455847,-500.0,9.376e-05,2]
[347511097,1735895455856,-1881.28,9.376e-05,2]
[347511098,1735895455865,-738.99,9.376e-05,2]
[347511099,1735895455874,-3573.83,9.376e-05,2]
[347511100,1735895455884,-2387.69,9.376e-05,2]
[347511101,1735895455893,-1977.43,9.376e-05,2]
[347511102,1735895455903,-1447.53,9.376e-05,2]
[347511103,1735895455912,-5770.55,9.376e-05,2]
[347511104,1735895455921,-2566.31,9.376e-05,2]
[347511105,1735895455931,-8542.67,9.376e-05,2]
[347511106,1735895455940,-3017.46,9.376e-05,2]
[347511107,1735895455950,-3629.37,9.376e-05,2]
[347511108,1735895455962,-10569.27,9.376e-05,2]
[347511109,1735895455971,-6539.12,9.376e-05,2]
[347511110,1735895455981,-11072.2,9.376e-05,2]
[347511111,1735895455990,-6336.96,9.376e-05,2]
[347511112,1735895456000,-500.0,9.376e-05,2]
[347511113,1735895456009,-1167.13,9.376e-05,2]
[347511114,1735895456018,-1501.86,9.376e-05,2]
[347511115,1735895456027,-4623.67,9.376e-05,2]
[347511116,1735895456037,-500.0,9.377e-05,2]
[347511117,1735895456046,-500.0,9.377e-05,2]
[347511118,1735895456055,-500.0,9.377e-05,2]
[347511119,1735895456065,-500.0,9.377e-05,2]
[347511120,1735895456074,-500.0,9.377e-05,2]
[347511121,1735895456084,-500.0,9.377e-05,2]
[347511122,1735895456094,-500.0,9.377e-05,2]
[347511123,1735895456103,-500.0,9.377e-05,2]
[347511124,1735895456112,-500.0,9.377e-05,2]
[347511125,1735895456122,-500.0,9.377e-05,2]